Cogmind - Beta 13 @@@ ROGUE MODE // 2024.04.12 @ 06:37:56 Player: JTMusky Result: Destroyed by H-66 Slayer with Gauss Rifle Performance ------------- Evolutions (4) 2000 Regions Visited (6) 1200 Robots Destroyed (20) 100 Value Destroyed (769) 769 Prototype IDs (5) 100 Alien Tech Used (0) 0 Bonus (139) 139 TOTAL SCORE: 4308 Bonus ------- High Alert Combat Kills 139 Cogmind --------- Core Integrity 0/850 Matter 6/300 Energy 287/300 System Corruption 4% Temperature Hot (282) Movement Hovering (71) Location -6/Factory Parts ------- > --- POWER (4) -------- Angular Momentum Engine > --- PROPULSION (4) --- Combat Airjet Combat Airjet Combat Airjet Combat Airjet > --- UTILITY (5) ------ Improved Reaction Control System > --- WEAPON (2) ------- (None) > --- INVENTORY (5) ---- Energy Filter Proton Cannon Peak State ------------ > --- POWER ------------ Micro Nuclear Core Angular Momentum Engine > --- PROPULSION ------- Aerolev Unit Aerolev Unit > --- UTILITY ---------- Energy Well Targeting Computer Advanced ECM Suite Hacking Suite > --- WEAPON ----------- Gatling Laser Remote Datajack > --- INVENTORY -------- Improved Carbon-fiber Leg Relay Coupler [Programmer] Beam Rifle RU-N14's Throwing Claymores [Rating: 40] Favorites ----------- Power Light Ion Engine Engine Light Ion Engine Power Core Light Nuclear Core Propulsion Aerolev Unit Leg Carbon-fiber Leg Wheel Wheel Hover Unit Aerolev Unit Flight Unit Cooled Cesium-ion Thruster Utility Targeting Computer Device Shield Generator Storage Energy Well Processor Targeting Computer Hackware Hacking Suite Protection Improved Core Shielding Weapon Small Laser Energy Gun Small Laser Energy Cannon Light EM Pulse Cannon Ballistic Cannon Assault Cannon Launcher Long-range Missile Launcher Special Weapon Remote Datajack Special Melee Weapon Datajack Build | -11 -10 -9 -9 -7 -6 -6 ------- Run | Yrd Mat Mat Min Zio Pro Fac Slots Evolved 8 | . . 2 . . . 6 Power 3 | . . 1 . . . 2 Propulsion 2 | . . . . . . 2 Utility 3 | . . 1 . . . 2 Weapon . | . . . . . . . Parts Attached 59 | 5 3 15 . 2 7 27 Power 9 | 1 1 2 . . . 5 Engine 7 | 1 . 2 . . . 4 Core 2 | . 1 . . . . 1 Reactor . | . . . . . . . Propulsion 16 | 2 . 4 . 1 . 9 Treads . | . . . . . . . Leg 2 | . . . . . . 2 Wheel 2 | 2 . . . . . . Hover 11 | . . 4 . 1 . 6 Flight 1 | . . . . . . 1 Utility 17 | . 2 5 . . 5 5 Device 11 | . 1 3 . . 4 3 Storage 1 | . . . . . . 1 Processor 2 | . 1 . . . 1 . Hackware 1 | . . 1 . . . . Protection 2 | . . 1 . . . 1 Artifact . | . . . . . . . Weapon 17 | 2 . 4 . 1 2 8 Energy Gun 7 | 2 . 2 . 1 1 1 Energy Cannon 1 | . . 1 . . . . Ballistic Gun . | . . . . . . . Ballistic Cannon 1 | . . . . . . 1 Launcher 1 | . . . . . . 1 Special Weapon 5 | . . . . . 1 4 Impact Weapon . | . . . . . . . Slashing Weapon . | . . . . . . . Piercing Weapon . | . . . . . . . Special Melee Weapon 2 | . . 1 . . . 1 Unidentified Prototypes 3 | . . 1 . . . 2 Parts Lost 21 | . . 9 . . . 12 Power 5 | . . 3 . . . 2 Propulsion 5 | . . 2 . . . 3 Utility 3 | . . . . . . 3 Weapon 8 | . . 4 . . . 4 Highest Loss Streak 6 | . . 6 . . . 4 To Critical Strikes 1 | . . . . . . 1 Average Slot Usage (%) 72 | . 97 81 66 75 76 41 Engine 3 | . 8 7 . . . 2 Core 3 | . 5 9 . . . 3 Wheel 7 | . 28 10 . . . . Hover 11 | . . 2 22 22 22 7 Device 8 | . 12 10 11 11 10 1 Processor 10 | . 13 11 11 11 11 4 Hackware 6 | . . 8 11 11 11 1 Energy Gun 15 | . 28 11 11 20 17 1 Special Weapon 1 | . . . . . 4 3 Naked Turns 111 | . . . . . . 111 Heaviest Build 34 | 5 8 15 5 9 9 34 Greatest Support 48 | 20 20 20 16 16 16 48 Greatest Overweight (x) 7 | 1 1 3 . 1 . 7 Average Overweight (x) . | . . . . . . . Largest Inventory Capacity 5 | 5 5 5 5 5 5 5 Average Capacity 5 | 5 5 5 5 5 5 5 Most Carried 5 | 4 4 5 3 5 5 5 Average Carried 3 | 1 3 3 3 4 4 3 Final Capacity 5 | 5 5 5 5 5 5 5 Final Carried 5 | 4 4 3 3 5 4 2 Class Distribution -------------------- 100% | Mutant Dominant Class ---------------- Mutant | -10/Materials Mutant | -9/Materials Mutant | -9/Mines Mutant | -7/Zion Mutant | -6/Proximity Caves Mutant | -6/Factory Resources | -11 -10 -9 -9 -7 -6 -6 ----------- Run | Yrd Mat Mat Min Zio Pro Fac Matter Collected 683 | 250 30 78 . 50 80 195 Remotely . | . . . . . . . Salvage Created 770 | 38 166 359 . . 60 147 Parts 42 | 1 8 25 . . . 8 Haulers Intercepted . | . . . . . . . Recyclers Shooed . | . . . . . . . Parts Field Recycled . | . . . . . . . Retrieved Matter . | . . . . . . . Parts Self-Destructed . | . . . . . . . Prevented . | . . . . . . . Kills | -11 -10 -9 -9 -7 -6 -6 ------- Run | Yrd Mat Mat Min Zio Pro Fac Combat Hostiles Destroyed 17 | 1 4 7 . . . 5 Guns 8 | 1 4 2 . . . 1 Cannons 5 | . . 5 . . . . AOE 4 | . . . . . . 4 Classes Destroyed 7 | 1 . 3 . . . 3 Worker 2 | . . . . . . 2 Operator 1 | . . 1 . . . . Grunt 10 | 1 4 4 . . . 1 Brawler 1 | . . . . . . 1 Duelist 1 | . . 1 . . . . Sentry 2 | . . 2 . . . . Programmer 3 | . . . . . . 3 Best Kill Streak 3 | 1 2 3 . . . 3 Combat Bots Only 3 | 1 2 3 . . . 3 Max Kills in Single Turn 1 | 1 1 1 . . . 1 Gunslinging . | . . . . . . . Exploded 1 | . . . . . . 1 Melee . | . . . . . . . Uniques/NPCs Destroyed . | . . . . . . . Combat | -11 -10 -9 -9 -7 -6 -6 -------- Run | Yrd Mat Mat Min Zio Pro Fac Hostile Shots Fired 305 | 3 21 65 1 . 15 200 Missed 106 | 1 7 21 . . 8 69 Damage Taken 3051 | 20 152 592 5 . 42 2240 Core 1044 | . 23 152 5 . 12 852 Absorbed by Shields 71 | . . 69 2 . . . Redirected to Shielding 78 | . . 2 . . . 76 Regen/Repaired (Parts) 100 | . . . . 100 . . Core Remaining (%) 82 | 100 90 . . . 57 . Volleys Fired 85 | 2 15 27 . . 15 26 Largest 2 | 2 2 2 . . 1 2 Hottest 136 | 80 80 96 . . 56 136 Shots Fired 124 | 4 30 48 . . 15 27 Gun 87 | 4 30 33 . . 15 5 Cannon 15 | . . 15 . . . . Launcher 16 | . . . . . . 16 Special 6 | . . . . . . 6 Kinetic . | . . . . . . . Thermal 86 | 4 30 32 . . 15 5 Explosive 16 | . . . . . . 16 Electromagnetic 16 | . . 16 . . . . Robot Hit Streak 13 | 2 13 10 . . 8 9 Robot Miss Streak 4 | 1 2 2 . . 4 2 Penetration Max . | . . . . . . . Secondary Targets 2 | . 1 1 . . . . Max Gunslinging Chain 1 | . 1 1 . . . . Shots Hit Robots 94 | 3 23 40 . . 9 19 Core Hits 41 | 2 9 16 . . 2 12 Critical Kills . | . . . . . . . Critical Parts Destroyed . | . . . . . . . Critical Strikes 1 | . . 1 . . . . Corrupt 1 | . . 1 . . . . Melee Attacks 4 | . . 4 . . . . Impact . | . . . . . . . Slashing . | . . . . . . . Piercing . | . . . . . . . Sneak Attacks . | . . . . . . . Combat Hostiles . | . . . . . . . Follow-up Attacks . | . . . . . . . Damage Inflicted 1828 | 32 256 552 . . 128 860 Guns 722 | 32 256 253 . . 128 53 Cannons 299 | . . 299 . . . . Explosions 787 | . . . . . . 787 Melee . | . . . . . . . Ramming 20 | . . . . . . 20 Kinetic . | . . . . . . . Thermal 712 | 32 256 243 . . 128 53 Explosive 787 | . . . . . . 787 Electromagnetic 309 | . . 309 . . . . Impact . | . . . . . . . Slashing . | . . . . . . . Piercing . | . . . . . . . Highest Corruption 4 | . . . . . . 4 Average Corruption 3 | . . . . . . 3 Corruption Purged . | . . . . . . . Corruption Blocked . | . . . . . . . Effects 18 | . . . . . . 18 Message Errors 3 | . . . . . . 3 Matter Fused 1 | . . . . . . 1 Heat Flow Errors 4 | . . . . . . 4 Energy Discharges 5 | . . . . . . 5 Parts Rejected 1 | . . . . . . 1 Data Loss (minor) 2 | . . . . . . 2 Data Loss (major) 1 | . . . . . . 1 Alerts 1 | . . . . . . 1 Overload Shots . | . . . . . . . Overflow Damage 31 | . . . . . . 31 Projectiles . | . . . . . . . Explosions 31 | . . . . . . 31 Melee . | . . . . . . . Knockbacks . | . . . . . . . Impact . | . . . . . . . Kinetic . | . . . . . . . Secondary . | . . . . . . . Self-Inflicted Damage 111 | . . . . . . 111 Shots 4 | . . . . . . 4 Rammed 2 | . . . . . . 2 Targets Rammed 2 | . . . . . . 2 Kicked . | . . . . . . . Crushed . | . . . . . . . Highest Temperature 322 | 42 204 322 . . 38 274 Average Temperature 82 | 21 73 106 . . 10 90 Received Heat Transfer 690 | 12 84 171 . . 6 417 Effects 2 | . . 2 . . . . Energy Bleed 2 | . . 2 . . . . Siege Activations . | . . . . . . . Robots Corrupted . | . . . . . . . Combat Hostiles . | . . . . . . . Parts Fried . | . . . . . . . Impact Corruptions . | . . . . . . . Robots Melted . | . . . . . . . Combat Hostiles . | . . . . . . . Parts Melted 4 | . 2 2 . . . . Heat Transferred 1669 | 75 575 575 . . 333 111 Parts Sabotaged . | . . . . . . . Parts Stolen . | . . . . . . . Parts Stripped . | . . . . . . . Power Chain Reactions . | . . . . . . . Alert | -11 -10 -9 -9 -7 -6 -6 ------- Run | Yrd Mat Mat Min Zio Pro Fac Peak Influence 1088 | 20 103 143 45 . . 1088 Initial 909 | . 13 18 30 . . 909 Average 306 | 2 32 56 30 . . 808 Maximum Alert Level 3 | . . . . . . 3 Low Security (%) 65 | 100 100 100 100 . . . Level 1 . | . . . . . . . Level 2 10 | . . . . . . 30 Level 3 24 | . . . . . . 69 Level 4 . | . . . . . . . Level 5 . | . . . . . . . High Security . | . . . . . . . Max Security . | . . . . . . . Squads Dispatched 6 | . 2 2 . . . 2 Investigation 1 | . . 1 . . . . Extermination 1 | . . . . . . 1 Reinforcement 4 | . 2 1 . . . 1 Assault . | . . . . . . . Garrison . | . . . . . . . Intercept . | . . . . . . . Searches Triggered 2 | . . . . . . 2 Construction Impeded . | . . . . . . . Haulers Reinforced . | . . . . . . . Active Scanning Responses . | . . . . . . . Cargo Convoy Interrupts . | . . . . . . . Stealth | -11 -10 -9 -9 -7 -6 -6 --------- Run | Yrd Mat Mat Min Zio Pro Fac Distress Signals 5 | . 1 2 . . . 2 Communications Jammed . | . . . . . . . Distress Signals . | . . . . . . . Times Spotted 80 | 1 9 24 2 . 19 25 Peak Tracking Total 7 | 1 3 7 3 . 2 6 Tactical Retreats 9 | . . 2 . . 2 5 Traps | -11 -10 -9 -9 -7 -6 -6 ------- Run | Yrd Mat Mat Min Zio Pro Fac Traps Triggered 1 | . . 1 . . . . Indirectly . | . . . . . . . Trap Hack Attempts . | . . . . . . . Triggered . | . . . . . . . Disarmed . | . . . . . . . Reprogrammed . | . . . . . . . Reused . | . . . . . . . Traps Extracted . | . . . . . . . Installed . | . . . . . . . Triggered . | . . . . . . . Machines | -11 -10 -9 -9 -7 -6 -6 ---------- Run | Yrd Mat Mat Min Zio Pro Fac Machines Disabled 3 | . . . . . . 3 Max in Single Turn 1 | . . . . . . 1 Machines Repaired . | . . . . . . . Machines Dismantled . | . . . . . . . Machines Sabotaged . | . . . . . . . Overloaded Fab Kills . | . . . . . . . Hacking | -11 -10 -9 -9 -7 -6 -6 --------- Run | Yrd Mat Mat Min Zio Pro Fac Machines Accessed 10 | . 6 2 . . . 2 Terminals 7 | . 4 2 . . . 1 Fabricators . | . . . . . . . Repair Stations . | . . . . . . . Recycling Units 3 | . 2 . . . . 1 Scanalyzers . | . . . . . . . Garrison Access . | . . . . . . . Total Hacks 29 | . 18 5 . . . 6 Successful 19 | . 11 5 . . . 3 Failed 10 | . 7 . . . . 3 Catastrophic . | . . . . . . . Database Lockouts . | . . . . . . . Manual 5 | . 5 . . . . . Terminals 19 | . 13 5 . . . 1 Fabricators . | . . . . . . . Repair Stations . | . . . . . . . Recycling Units 10 | . 5 . . . . 5 Scanalyzers . | . . . . . . . Garrison Access . | . . . . . . . Terminal Hacks 15 | . 9 5 . . . 1 Record 8 | . 6 2 . . . . Prototype ID Bank 1 | . 1 . . . . . Open DSF 1 | . . . . . . 1 Alert Level 3 | . 2 1 . . . . Unreport Threat 1 | . . 1 . . . . Zone Layout 1 | . . 1 . . . . Fabricator Hacks . | . . . . . . . Repair Station Hacks . | . . . . . . . Recycling Unit Hacks 4 | . 2 . . . . 2 Recycle Component 2 | . 2 . . . . . Retrieve Components 2 | . . . . . . 2 Scanalyzer . | . . . . . . . Garrison Access Hacks . | . . . . . . . Unauthorized Hacks . | . . . . . . . Terminals . | . . . . . . . Fabricators . | . . . . . . . Repair Stations . | . . . . . . . Recycling Units . | . . . . . . . Scanalyzers . | . . . . . . . Garrison Access . | . . . . . . . Data Cores Recovered 1 | . . 1 . . . . Used . | . . . . . . . Hacking Detections 9 | . 6 2 . . . 1 Full Trace Events 3 | . 2 1 . . . . Feedback Events . | . . . . . . . Feedback Blocked . | . . . . . . . Robot Schematics Acquired . | . . . . . . . Robots Built . | . . . . . . . Authchips . | . . . . . . . Time . | . . . . . . . Total Robot Build Rating . | . . . . . . . Part Schematics Acquired . | . . . . . . . Parts Built . | . . . . . . . Authchips . | . . . . . . . Time . | . . . . . . . Total Part Build Rating . | . . . . . . . Parts Repaired . | . . . . . . . Time . | . . . . . . . Parts Recycled 2 | . 2 . . . . . Recycled Matter . | . . . . . . . Retrieved Matter . | . . . . . . . Retrieved Components . | . . . . . . . Parts Scanalyzed . | . . . . . . . Part Schematics Acquired . | . . . . . . . Parts Damaged . | . . . . . . . Bothacking | -11 -10 -9 -9 -7 -6 -6 ------------ Run | Yrd Mat Mat Min Zio Pro Fac Used RIF Installer . | . . . . . . . Robots Hacked 5 | . . 1 . . . 4 Non-combat 2 | . . . . . . 2 Combat 3 | . . 1 . . . 2 Robot Hacks Applied 5 | . . 1 . . . 4 parse_system 4 | . . 1 . . . 3 no_distress 1 | . . . . . . 1 Relay Couplers Released . | . . . . . . . Fabnet Peak Effective % . | . . . . . . . Robots Rewired . | . . . . . . . Allies Hacked . | . . . . . . . Hacks Repelled . | . . . . . . . Allies | -11 -10 -9 -9 -7 -6 -6 -------- Run | Yrd Mat Mat Min Zio Pro Fac Total Allies . | . . . . . . . Largest Group . | . . . . . . . Highest-Rated Group . | . . . . . . . Highest-Rated Ally . | . . . . . . . Total Orders . | . . . . . . . Ally Attacks . | . . . . . . . Total Damage . | . . . . . . . Kills . | . . . . . . . Allies Corrupted . | . . . . . . . Allies Melted . | . . . . . . . Intel | -11 -10 -9 -9 -7 -6 -6 ------- Run | Yrd Mat Mat Min Zio Pro Fac Robot Analysis Total . | . . . . . . . Derelict Logs Recovered 5 | . . . 1 2 2 . Drone Launches . | . . . . . . . Drone Recoveries . | . . . . . . . Exploration | -11 -10 -9 -9 -7 -6 -6 ------------- Run | Yrd Mat Mat Min Zio Pro Fac Turns Passed 4631 | 88 902 651 237 631 1120 1002 Spaces Moved 6091 | 95 800 556 374 1221 2075 970 Core 337 | 25 48 31 . . . 233 Treads . | . . . . . . . Legs 168 | . . . . . . 168 Wheels 1266 | 70 752 444 . . . . Hover 4320 | . . 81 374 1221 2075 569 Flight . | . . . . . . . Fastest Speed 46 | 50 80 46 46 46 46 46 Average Speed 61 | 74 81 86 46 46 46 87 Slowest Speed 400 | 100 100 200 46 110 46 400 Overloaded Moves . | . . . . . . . Propulsion Burnouts . | . . . . . . . Robots Hopped . | . . . . . . . Cave-ins Triggered . | . . . . . . . Exploration Rate (%) 58 | 7 93 45 62 81 99 25 Regions Visited 6 Branch Regions 3 Pre-discovered Areas 2 | . . . . 2 . . Known Exits Taken 1 | . . . . 1 . . Unknown Exits Taken 5 | 1 1 1 1 . 1 . Scrap Searched 4 | . . . . 3 1 . Spaces Dug . | . . . . . . . Terrain Destroyed 91 | . . . . . . 91 Melee . | . . . . . . . Projectile . | . . . . . . . AOE 91 | . . . . . . 91 Terrain Rammed . | . . . . . . . Walls Destroyed . | . . . . . . . Machines Disabled . | . . . . . . . Actions | -11 -10 -9 -9 -7 -6 -6 --------- Run | Yrd Mat Mat Min Zio Pro Fac Total 6835 | 105 1021 671 438 1288 2224 1088 Wait 543 | . 200 63 65 61 116 38 Move 6085 | 94 799 555 373 1220 2074 970 Hop . | . . . . . . . Pick Up 17 | 4 3 2 . 3 . 5 Fast Attach 42 | 5 2 8 . 2 5 20 Attach 11 | . . 4 . . 1 6 Detach 9 | . . 3 . . 1 5 Swap 7 | . 1 3 . . 1 2 Drop 22 | . 1 2 . 2 5 12 Fire 85 | 2 15 27 . . 15 26 Melee 4 | . . 4 . . . . Ram 2 | . . . . . . 2 Kick . | . . . . . . . Crush . | . . . . . . . Escape Stasis . | . . . . . . . Rewire 6 | . . . . . 6 . Trap . | . . . . . . . Miscellaneous 2 | . . . . . . 2 Route ------- -11/Scrapyard -10/Materials (discovered 4 exits: *Mat x3 / [*Min]) -9/Materials (discovered 4 exits: [*Mat x2] / [*Min x2]) -9/Mines -7/Zion -6/Proximity Caves -6/Factory (discovered 2 exits: Fac / [*Low]) History --------- Turn | Location | Event 2 | -11/Scrapyard | Met Revision 17 67 | -11/Scrapyard | Discovered new exit (range 8) 89 | -11/Scrapyard | Entered Materials 261 | -10/Materials | Discovered new exit (range 15) 312 | -10/Materials | Build established: Mutant 444 | -10/Materials | Discovered new exit (range 15) 599 | -10/Materials | Discovered new exit (range 13) 818 | -10/Materials | Discovered new exit (range 8) 991 | -10/Materials | Entered another Materials area 991 | -9/Materials | Evolved 2 slots: Power x1, Utility x1 1055 | -9/Materials | Discovered new exit (range 10) 1243 | -9/Materials | Discovered new exit (range 3) 1403 | -9/Materials | Discovered new exit (range 15) 1590 | -9/Materials | Lost 6 parts (2p1n3w) 1627 | -9/Materials | Discovered new exit (range 7) 1642 | -9/Materials | Entered Mines 1646 | -9/Mines | Learned Materials garrison access intel 1703 | -9/Mines | A Derelict revealed a hidden shortcut to a safe place 1879 | -9/Mines | Entered Zion 1967 | -7/Zion | Learned Factory trap positions 2004 | -7/Zion | Identified exit to Proximity Caves 2038 | -7/Zion | Found Prototype Special Weapon 2082 | -7/Zion | Visited the Megawrench Repair Shop 2082 | -7/Zion | Megawrench repaired 5 parts 2094 | -7/Zion | Learned location of Testing (-3) 2157 | -7/Zion | Learned location of Data Miner (-6) 2426 | -7/Zion | Found Relay Coupler [Programmer] 2510 | -7/Zion | Entered Proximity Caves 2589 | -6/Proximity Caves | Learned 4 Factory zone layouts 2605 | -6/Proximity Caves | Spotter reported a threat 2658 | -6/Proximity Caves | Spotter reported a threat 2709 | -6/Proximity Caves | Spotter reported a threat 2748 | -6/Proximity Caves | Discovered new exit (range 14) 2762 | -6/Proximity Caves | Spotter reported a threat 2788 | -6/Proximity Caves | Spotter reported a threat 2834 | -6/Proximity Caves | Spotter reported a threat 2972 | -6/Proximity Caves | Learned Factory security intel 3006 | -6/Proximity Caves | Attracted the attention of an 0b10 checkpoint 3166 | -6/Proximity Caves | Spotter reported a threat 3218 | -6/Proximity Caves | Spotter reported a threat 3252 | -6/Proximity Caves | Spotter reported a threat 3303 | -6/Proximity Caves | Spotter reported a threat 3305 | -6/Proximity Caves | Spotter reported a threat 3445 | -6/Proximity Caves | Spotter reported a threat 3504 | -6/Proximity Caves | Spotter reported a threat 3541 | -6/Proximity Caves | Spotter reported a threat 3630 | -6/Proximity Caves | Entered Factory 3630 | -6/Factory | Evolved 6 slots: Power x2, Propulsion x2, Utility x2 3631 | -6/Factory | Identified exit to Factory 3632 | -6/Factory | Loaded intel: 78 trap records 3695 | -6/Factory | Spotted B-75 Beast 3821 | -6/Factory | Identified RU-N14's Throwing Claymores 3980 | -6/Factory | Search patrols dispatched 4330 | -6/Factory | Search patrols dispatched 4375 | -6/Factory | Released all parts (3) 4380 | -6/Factory | Core integrity fell below 50% 4390 | -6/Factory | Lost 4 parts (1p1n2w) 4570 | -6/Factory | Core integrity fell below 20% 4573 | -6/Factory | Discovered new exit (range 4) 4632 | -6/Factory | Destroyed by H-66 Slayer with Gauss Rifle Last Messages --------------- all of your earned achievements as well as seek out new goals for future runs. 04589_ S-27 Virus destroyed. 04593_ System corrupted: Cmb. Airjet rejected. 04597_ Acquired Proton Cannon. 04607_ Slug penetrates Wall. 04607_ Critical hit (Destroy). 04607_ Assault Cannon destroyed. 04616_ Slammed into H-66 Slayer. 04616_ Penetrated by Slug. 04616_ Angular Momentum Engine destroyed. 04618_ Slammed into H-66 Slayer. 04620_ S-27 Virus destroyed. 04620_ Power Conduit explodes. 04620_ H-66 Slayer destroyed. 04620_ Penetrated by Slug. 04620_ Cmb. Airjet destroyed. 04621_ Acquired 11 matter. 04631_ System corrupted: Heat flow error (+295). 04632_ Slug penetrates Wall. Map ----- +----------------------------------------------------+ | | | | | | | | | | | ???????????????????????????##### ##????? | | ???????????????????????????# #????? | | ?????????????????#######???# ! #????? | | ################## #???# #????? | | ##### #????? | | < # #????? | | ### # = #????? | | ##########?####### #?# # #????? | | # #???????###/###?# # #????? | | # """ #???????# #?# # #????? | | "" # """ #???????# ### ##; ; ** ##+###??? | | "" # """ #???????# """ # ##; =% #??? | | "" # #???????# "R # * [ #??? | | # ######### """ # = #??? | | ##+##### / """ #= #??? | | / == ## # sh##### #??? | | #### ###########/##???######## #??? | | ## #???????????? #??? | | """ ## !!! #????????????? #??? | | """ ## !!! #?????????????? #??? | | * """ ## !!! @ #??????????????? #??? | | ** # #??????????????? +??? | | ** """ ######+#####???????????????? ???? | | """ ????????????????????????????? | | "Y" """ ??????????????????????????? | | """ ?????????????????????????????? | | ?????????????????????????????? | | ?????????????????????????????? | | ############# #######????????????????????????????? | | ????????????? #??????????????????????????????????? | | ????????????? #??????????????????????????????????? | | ?????????????????????????????????????????????????? | | ?????????????????????????????????????????????????? | | ?????????????????????????????????????????????????? | | ?????????????????????????????????????????????????? | | ?????????????????????????????????????????????????? | | ?????????????????????????????????????????????????? | | ?????????????????????????????????????????????????? | | ?????????????????????????????????????????????????? | | ?????????????????????????????????????????????????? | | ?????????????????????????????????????????????????? | | ?????????????????????????????????????????????????? | | ?????????????????????????????????????????????????? | | ?????????????????????????????????????????????????? | | ?????????????????????????????????????????????????? | +----------------------------------------------------+ Best States ------------- Heat Dissipation 37 Energy Generation 31 Energy Capacity 700 Matter Stores 300 Matter Capacity 300 Sight Range 16 Terrain Scan Density 10 Core Shielding 30 Evasion (%) 55 Targeting Accuracy 5 Energy Filtering 30 Offensive Hacking 10 Item Schematics ----------------- None Robot Schematics ------------------ None Fabricated ------------ Nothing Alien Tech Used ----------------- None Achievements -------------- Crack Shot Everything Is Under Control I'm Back, Baby! Made in Tau Ceti IV One Hack Too Far Oops Risk Taker Robot Respite Tourist Challenges ------------ None Game ------ Seed EfficiencyRecoilWell Manual? 0 Play Time 02:39:32 Cumulative 3.9 hours Start 2024.04.11 @ 08:14:26 End 2024.04.12 @ 06:37:56 Sessions 9 Manual Loads 0 Difficulty Rogue Special Mode None Game No. 3 Rogue 3 Adventurer 0 Explorer 0 Win Type - Total 0 Types 0/0/0/0/0/0/0/0/0 Lore% 3 Gallery% 5 Achievement% 4 Wizard Run 0 Options --------- Layout 2 ASCII 1 Keyboard 1 Movement Vi Keybinds 0 Fullscreen 2 Font 40/SmallcapsGlow Map View 50x44 Zoom Use 0% Tactical HUD 1 Map Filters NONE Filters NONE Steam 0 RUN: cd00464d-5144-4723-98d1-bd8e09070f75